fUSD/lending_fUSD_20260611
["ID","MTS","AMOUNT","RATE_DAILY","PERIOD"]
[424821375,1781182253000,-1000.0,0.00030285,2]
[424821407,1781182253000,-378.1732,0.00030285,5]
[424821408,1781182253000,-378.1732,0.00030285,5]
[424821409,1781182253000,-200.0,0.00030285,2]
[424821410,1781182253000,-573.27,0.00030285,2]
[424821411,1781182253000,-578.01,0.00030285,2]
[424821415,1781182253000,-644.05,0.00030285,2]
[424821413,1781182253000,-573.04,0.00030285,2]
[424821414,1781182253000,-573.23,0.00030285,2]
[424821412,1781182253000,-573.23,0.00030285,2]
[424821420,1781182253000,-573.23,0.00030285,2]
[424821418,1781182253000,-482.22,0.00030285,2]
[424821416,1781182253000,-396.03,0.00030285,2]
[424821405,1781182253000,-378.1732,0.00030285,5]
[424821421,1781182253000,-185.09,0.00030285,2]
[424821419,1781182253000,-185.09,0.00030285,2]
[424821423,1781182253000,-575.42,0.00030285,2]
[424821432,1781182253000,-264.7728823,0.00030292,7]
[424821431,1781182253000,-186.64768682,0.00030289,7]
[424821376,1781182253000,-1000.0,0.00030285,2]
[424821424,1781182253000,-396.12,0.00030285,2]
[424821425,1781182253000,-185.09,0.00030285,2]
[424821427,1781182253000,-396.11,0.00030285,2]
[424821426,1781182253000,-185.03,0.00030285,2]
[424821430,1781182253000,-360.28245053,0.00030289,7]
[424821428,1781182253000,-185.09,0.00030285,2]
[424821429,1781182253000,-394.32750378,0.00030289,7]
[424821417,1781182253000,-185.06,0.00030285,2]
[424821406,1781182253000,-378.1732,0.00030285,5]
[424821422,1781182253000,-573.23,0.00030285,2]
[424821403,1781182253000,-378.1732,0.00030285,5]
[424821404,1781182253000,-378.1732,0.00030285,5]
[424821388,1781182253000,-1000.0,0.00030285,2]
[424821387,1781182253000,-1000.0,0.00030285,2]
[424821378,1781182253000,-1000.0,0.00030285,2]
[424821379,1781182253000,-1000.0,0.00030285,2]
[424821381,1781182253000,-1000.0,0.00030285,2]
[424821385,1781182253000,-1000.0,0.00030285,2]
[424821386,1781182253000,-1000.0,0.00030285,2]
[424821380,1781182253000,-1000.0,0.00030285,2]
[424821383,1781182253000,-1000.0,0.00030285,2]
[424821384,1781182253000,-1000.0,0.00030285,2]
[424821390,1781182253000,-1000.0,0.00030285,2]
[424821377,1781182253000,-1000.0,0.00030285,2]
[424821399,1781182253000,-1008.79341403,0.00030285,2]
[424821389,1781182253000,-1000.0,0.00030285,2]
[424821400,1781182253000,-200.0,0.00030285,2]
[424821395,1781182253000,-1000.0,0.00030285,2]
[424821396,1781182253000,-1000.0,0.00030285,2]
[424821391,1781182253000,-1000.0,0.00030285,2]
[424821401,1781182253000,-200.0,0.00030285,2]
[424821398,1781182253000,-1000.0,0.00030285,2]
[424821393,1781182253000,-1000.0,0.00030285,2]
[424821397,1781182253000,-1000.0,0.00030285,2]
[424821392,1781182253000,-1000.0,0.00030285,2]
[424821394,1781182253000,-1000.0,0.00030285,2]
[424821402,1781182253000,-200.0,0.00030285,2]
[424821446,1781182254000,-185.52693481,0.00030292,7]
[424821462,1781182254000,-901.79854955,0.00030293,7]
[424821452,1781182254000,-277.16920904,0.00030292,7]
[424821458,1781182254000,-717.7612405,0.00030293,7]
[424821457,1781182254000,-1156.52378071,0.00030293,7]
[424821461,1781182254000,-1182.92119933,0.00030293,7]
[424821459,1781182254000,-506.64182852,0.00030293,7]
[424821460,1781182254000,-995.17057003,0.00030293,7]
[424821467,1781182254000,-591.82425155,0.00030293,7]
[424821464,1781182254000,-640.24050996,0.00030293,7]
[424821463,1781182254000,-637.22902746,0.00030293,7]
[424821465,1781182254000,-610.47859906,0.00030293,7]
[424821455,1781182254000,-324.10209189,0.00030293,7]
[424821468,1781182254000,-212.41417011,0.00030293,7]
[424821475,1781182254000,-742.87861908,0.00030293,7]
[424821472,1781182254000,-684.52314672,0.00030293,7]
[424821476,1781182254000,-224.6116695,0.00030293,7]
[424821469,1781182254000,-654.33510351,0.00030293,7]
[424821466,1781182254000,-821.63093457,0.00030293,7]
[424821456,1781182254000,-776.09144141,0.00030293,7]
[424821445,1781182254000,-394.7232148,0.00030292,7]
[424821449,1781182254000,-354.37059299,0.00030292,7]
[424821470,1781182254000,-400.73578953,0.00030293,7]
[424821433,1781182254000,-159.1022608,0.00030292,7]
[424821434,1781182254000,-167.07,0.00030292,13]
[424821436,1781182254000,-167.06,0.00030292,13]
[424821438,1781182254000,-187.94,0.00030292,13]
[424821437,1781182254000,-187.95,0.00030292,13]
[424821439,1781182254000,-684.63928736,0.00030292,7]
[424821435,1781182254000,-167.07,0.00030292,13]
[424821450,1781182254000,-430.05701229,0.00030292,7]
[424821444,1781182254000,-670.79361537,0.00030292,5]
[424821442,1781182254000,-310.926811,0.00030292,7]
[424821441,1781182254000,-692.53037925,0.00030292,2]
[424821443,1781182254000,-216.48070196,0.00030292,7]
[424821447,1781182254000,-397.66768498,0.00030292,7]
[424821448,1781182254000,-729.95958498,0.00030292,7]
[424821453,1781182254000,-479.34395227,0.00030292,7]
[424821451,1781182254000,-154.40572779,0.00030292,5]
[424821454,1781182254000,-631.38543916,0.00030293,7]
[424821440,1781182254000,-706.44909167,0.00030292,7]
[424821473,1781182254000,-418.8195113,0.00030293,7]
[424821507,1781182254000,-151.0,0.00030526,7]
[424821471,1781182254000,-487.68871705,0.00030293,7]
[424821497,1781182254000,-200.0,0.000305,2]
[424821502,1781182254000,-151.0,0.00030526,7]
[424821501,1781182254000,-151.0,0.00030526,7]
[424821503,1781182254000,-427.152321,0.00030526,7]
[424821504,1781182254000,-427.152321,0.00030526,7]
[424821505,1781182254000,-427.152321,0.00030526,7]
[424821506,1781182254000,-427.152321,0.00030526,7]
[424821511,1781182254000,-382.0,0.00030526,2]
[424821498,1781182254000,-309.0,0.000305,2]
[424821510,1781182254000,-3556.0,0.00030526,2]
[424821512,1781182254000,-1227.0,0.00030526,2]
[424821514,1781182254000,-200.0,0.00030588,2]
[424821513,1781182254000,-350.0,0.00030533,5]
[424821515,1781182254000,-200.0,0.00030588,2]
[424821516,1781182254000,-200.0,0.00030588,2]
[424821518,1781182254000,-288.87390616,0.00030635,30]
[424821517,1781182254000,-200.0,0.00030588,2]
[424821474,1781182254000,-543.51630696,0.00030293,7]
[424821508,1781182254000,-151.0,0.00030526,7]
[424821496,1781182254000,-316.0,0.000305,2]
[424821509,1781182254000,-151.0,0.00030526,7]
[424821500,1781182254000,-151.0,0.00030526,7]
[424821493,1781182254000,-152.0,0.00030444,7]
[424821478,1781182254000,-383.72671369,0.00030293,7]
[424821477,1781182254000,-782.87278065,0.00030293,7]
[424821480,1781182254000,-680.39765922,0.00030293,7]
[424821488,1781182254000,-664.48385094,0.00030293,7]
[424821482,1781182254000,-679.03498658,0.00030293,7]
[424821481,1781182254000,-633.54497604,0.00030293,7]
[424821479,1781182254000,-727.09003871,0.00030293,7]
[424821486,1781182254000,-179.2791174,0.00030293,7]
[424821489,1781182254000,-642.54634528,0.00030293,7]
[424821484,1781182254000,-477.59503861,0.00030293,7]
[424821483,1781182254000,-636.8867092,0.00030293,7]
[424821485,1781182254000,-608.5002343,0.00030293,7]
[424821490,1781182254000,-350.0,0.00030366,3]
[424821492,1781182254000,-320.0,0.00030417,16]
[424821499,1781182254000,-1000.0,0.000305,2]
[424821495,1781182254000,-271.0,0.00030478,2]
[424821487,1781182254000,-182.94161993,0.00030293,7]
[424821494,1781182254000,-152.0,0.00030459,7]
[424821491,1781182254000,-929.68,0.00030407,33]
[424821542,1781182255000,-187.94,0.0003084,13]
[424821539,1781182255000,-250.0,0.0003081,7]
[424821532,1781182255000,-151.0,0.00030782,7]
[424821538,1781182255000,-200.0,0.000308,11]
[424821533,1781182255000,-151.0,0.00030782,7]
[424821536,1781182255000,-840.326565,0.00030782,7]
[424821540,1781182255000,-250.0,0.0003081,7]
[424821531,1781182255000,-150.0,0.00030765,7]
[424821537,1781182255000,-840.326565,0.00030782,7]
[424821535,1781182255000,-840.326565,0.00030782,7]
[424821522,1781182255000,-150.0,0.00030724,7]
[424821524,1781182255000,-971.27283526,0.00030735,7]
[424821527,1781182255000,-2500.0,0.00030759,120]
[424821525,1781182255000,-835.88222463,0.00030736,7]
[424821526,1781182255000,-2500.0,0.00030759,120]
[424821521,1781182255000,-4976.0,0.00030705,10]
[424821520,1781182255000,-150.0,0.00030705,2]
[424821529,1781182255000,-151.0,0.00030759,7]
[424821528,1781182255000,-2382.0,0.00030759,120]
[424821523,1781182255000,-793.45906568,0.00030735,7]
[424821519,1781182255000,-320.0,0.00030691,17]
[424821550,1781182255000,-897.20155062,0.00030871,7]
[424821530,1781182255000,-151.0,0.00030759,7]
[424821541,1781182255000,-187.95,0.0003084,13]
[424821534,1781182255000,-840.326565,0.00030782,7]
[424821544,1781182255000,-883.06136459,0.0003087,7]
[424821567,1781182255000,-200.0,0.00030894,2]
[424821563,1781182255000,-830.60481367,0.00030871,7]
[424821565,1781182255000,-200.0,0.00030894,2]
[424821568,1781182255000,-12791.43273538,0.000309,2]
[424821566,1781182255000,-200.0,0.00030894,2]
[424821564,1781182255000,-131331.60651923,0.00030875,2]
[424821543,1781182255000,-855.7991092,0.0003087,7]
[424821552,1781182255000,-1478.65149917,0.00030871,7]
[424821558,1781182255000,-978.59097581,0.00030871,7]
[424821561,1781182255000,-796.1083865,0.00030871,7]
[424821559,1781182255000,-791.93122005,0.00030871,7]
[424821562,1781182255000,-760.62529287,0.00030871,7]
[424821557,1781182255000,-763.09824882,0.00030871,7]
[424821560,1781182255000,-848.79373322,0.00030871,7]
[424821545,1781182255000,-865.66297406,0.0003087,2]
[424821547,1781182255000,-970.11430176,0.00030871,7]
[424821548,1781182255000,-828.71571197,0.00030871,5]
[424821549,1781182255000,-1445.65472589,0.00030871,7]
[424821546,1781182255000,-912.44948123,0.0003087,7]
[424821554,1781182255000,-796.53628432,0.00030871,7]
[424821556,1781182255000,-1027.03866821,0.00030871,7]
[424821553,1781182255000,-1127.24818693,0.00030871,7]
[424821555,1781182255000,-800.30063745,0.00030871,7]
[424821551,1781182255000,-1243.96321254,0.00030871,7]
[424821595,1781182257000,-482.22,0.00031018,2]
[424821597,1781182257000,-482.22,0.00031018,2]
[424821602,1781182257000,-184.18,0.00031018,2]
[424821600,1781182257000,-185.09,0.00031018,2]
[424821598,1781182257000,-185.09,0.00031018,2]
[424821596,1781182257000,-185.43,0.00031018,2]
[424821601,1781182257000,-396.12,0.00031018,2]
[424821599,1781182257000,-573.23,0.00031018,2]
[424821603,1781182257000,-573.23,0.00031018,2]
[424821604,1781182257000,-185.09,0.00031018,2]
[424821615,1781182257000,-273.0,0.00031087,3]
[424821607,1781182257000,-482.22,0.00031018,2]
[424821610,1781182257000,-575.42,0.00031019,2]
[424821608,1781182257000,-185.09,0.00031019,2]
[424821605,1781182257000,-575.42,0.00031018,2]
[424821611,1781182257000,-166.98,0.00031054,5]
[424821609,1781182257000,-644.05,0.00031019,2]
[424821613,1781182257000,-556.61,0.00031054,30]
[424821612,1781182257000,-227.7,0.00031054,7]
[424821614,1781182257000,-1960.0,0.0003108,2]
[424821616,1781182257000,-297.8,0.00031096,5]
[424821593,1781182257000,-575.42,0.00031018,2]
[424821606,1781182257000,-573.23,0.00031018,2]
[424821594,1781182257000,-573.23,0.00031018,2]
[424821578,1781182257000,-663.85,0.00028194,7]
[424821590,1781182257000,-575.42,0.00031018,2]
[424821617,1781182257000,-573.27,0.00031107,2]
[424821570,1781182257000,-386.71737459,0.000226,4]
[424821569,1781182257000,-416.88213483,0.000226,4]
[424821571,1781182257000,-663.85,0.00027711,7]
[424821572,1781182257000,-663.85,0.00027872,2]
[424821573,1781182257000,-663.85,0.00028033,30]
[424821576,1781182257000,-682.96,0.00028099,2]
[424821575,1781182257000,-682.96,0.00028068,30]
[424821574,1781182257000,-682.96,0.00028038,7]
[424821577,1781182257000,-682.99,0.0002813,7]
[424821592,1781182257000,-396.12,0.00031018,2]
[424821581,1781182257000,-15886.23871763,0.00029962,2]
[424821579,1781182257000,-803.59950942,0.0002845,5]
[424821582,1781182257000,-37208.56726462,0.000309,2]
[424821583,1781182257000,-320.0,0.0003096,18]
[424821584,1781182257000,-320.0,0.00030961,2]
[424821587,1781182257000,-2500.0,0.00031,3]
[424821585,1781182257000,-929.68,0.00030975,18]
[424821591,1781182257000,-185.09,0.00031018,2]
[424821589,1781182257000,-487.17,0.00031,2]
[424821586,1781182257000,-150.1872639,0.00030993,2]
[424821588,1781182257000,-487.18,0.00031,2]
[424821580,1781182257000,-16634.16971911,0.000288,2]
[424821621,1781182257000,-575.45,0.00031107,2]
[424821643,1781182257000,-575.17,0.00031107,2]
[424821619,1781182257000,-441.99,0.00031107,2]
[424821647,1781182257000,-1107.0,0.00031189,30]
[424821648,1781182257000,-404.0,0.00031189,30]
[424821649,1781182257000,-425.0,0.00031189,30]
[424821650,1781182257000,-1162.0,0.0003119,30]
[424821652,1781182257000,-478.0,0.0003119,30]
[424821653,1781182257000,-277.0,0.0003119,30]
[424821659,1781182257000,-1000.0,0.000312,7]
[424821651,1781182257000,-269.0,0.0003119,30]
[424821660,1781182257000,-200.0,0.00031203,2]
[424821655,1781182257000,-428.0,0.0003119,30]
[424821646,1781182257000,-337.0,0.00031189,30]
[424821657,1781182257000,-1231.0,0.00031191,30]
[424821658,1781182257000,-1860.0,0.00031191,30]
[424821661,1781182257000,-200.0,0.00031203,2]
[424821662,1781182257000,-200.0,0.00031203,2]
[424821665,1781182257000,-5000.0,0.00031233,60]
[424821664,1781182257000,-249.0,0.00031225,2]
[424821669,1781182257000,-400.0,0.00031233,30]
[424821667,1781182257000,-419.0,0.00031233,60]
[424821666,1781182257000,-3284.0,0.00031233,60]
[424821668,1781182257000,-400.0,0.00031233,30]
[424821618,1781182257000,-575.42,0.00031107,2]
[424821654,1781182257000,-396.0,0.0003119,30]
[424821645,1781182257000,-929.68,0.0003116,18]
[424821656,1781182257000,-342.0,0.00031191,30]
[424821639,1781182257000,-577.8,0.00031107,2]
[424821641,1781182257000,-396.12,0.00031107,2]
[424821620,1781182257000,-575.42,0.00031107,2]
[424821622,1781182257000,-185.09,0.00031107,2]
[424821623,1781182257000,-185.07,0.00031107,2]
[424821624,1781182257000,-396.12,0.00031107,2]
[424821625,1781182257000,-395.08,0.00031107,2]
[424821628,1781182257000,-575.36,0.00031107,2]
[424821637,1781182257000,-185.09,0.00031107,2]
[424821636,1781182257000,-482.22,0.00031107,2]
[424821630,1781182257000,-575.42,0.00031107,2]
[424821629,1781182257000,-396.12,0.00031107,2]
[424821626,1781182257000,-575.42,0.00031107,2]
[424821627,1781182257000,-483.42,0.00031107,2]
[424821631,1781182257000,-644.05,0.00031107,2]
[424821632,1781182257000,-482.22,0.00031107,2]
[424821633,1781182257000,-185.09,0.00031107,2]
[424821634,1781182257000,-185.09,0.00031107,2]
[424821635,1781182257000,-573.23,0.00031107,2]
[424821642,1781182257000,-185.09,0.00031107,2]
[424821640,1781182257000,-644.05,0.00031107,2]
[424821644,1781182257000,-288.87390616,0.00031133,30]
[424821638,1781182257000,-396.12,0.00031107,2]
[424821663,1781182257000,-320.0,0.00031225,19]
[424821710,1781182258000,-1352.69782432,0.00031738,7]
[424821701,1781182258000,-4044.71,0.00031696,30]
[424821732,1781182258000,-482.22,0.0003184,2]
[424821711,1781182258000,-915.71789859,0.00031738,7]
[424821730,1781182258000,-479.48,0.0003184,2]
[424821722,1781182258000,-1253.28,0.000318,2]
[424821718,1781182258000,-396.06,0.00031797,2]
[424821716,1781182258000,-320.0,0.00031739,21]
[424821726,1781182258000,-482.17,0.0003184,2]
[424821706,1781182258000,-1734.78567107,0.00031738,7]
[424821719,1781182258000,-200.0,0.000318,12]
[424821728,1781182258000,-575.42,0.0003184,2]
[424821724,1781182258000,-644.05,0.0003184,2]
[424821700,1781182258000,-150.0,0.00031649,22]
[424821720,1781182258000,-625.28,0.000318,2]
[424821715,1781182258000,-912.75035144,0.00031738,7]
[424821721,1781182258000,-6266.4,0.000318,2]
[424821729,1781182258000,-482.22,0.0003184,2]
[424821723,1781182258000,-9384.14,0.000318,2]
[424821703,1781182258000,-1038.79556887,0.00031737,2]
[424821708,1781182258000,-1492.75585505,0.00031738,7]
[424821712,1781182258000,-1018.55247987,0.00031738,7]
[424821727,1781182258000,-575.42,0.0003184,2]
[424821725,1781182258000,-575.42,0.0003184,2]
[424821705,1781182258000,-1094.93937748,0.00031737,7]
[424821731,1781182258000,-644.05,0.0003184,2]
[424821713,1781182258000,-950.31746406,0.00031738,7]
[424821714,1781182258000,-996.72577641,0.00031738,7]
[424821673,1781182258000,-371.0,0.00031233,30]
[424821694,1781182258000,-929.68,0.00031544,33]
[424821670,1781182258000,-400.0,0.00031233,30]
[424821672,1781182258000,-400.0,0.00031233,30]
[424821671,1781182258000,-400.0,0.00031233,30]
[424821698,1781182258000,-1060.38982163,0.00031599,7]
[424821674,1781182258000,-500.0,0.00031233,60]
[424821679,1781182258000,-376.0,0.00031256,30]
[424821680,1781182258000,-150.0,0.00031265,7]
[424821681,1781182258000,-929.68,0.00031316,18]
[424821685,1781182258000,-929.68,0.00031385,25]
[424821682,1781182258000,-382.0,0.00031323,10]
[424821683,1781182258000,-380.0,0.00031323,10]
[424821675,1781182258000,-500.0,0.00031233,60]
[424821707,1781182258000,-1076.64186074,0.00031738,7]
[424821676,1781182258000,-475.06942563,0.00031233,60]
[424821678,1781182258000,-2000.0,0.00031233,2]
[424821686,1781182258000,-187.95,0.00031388,13]
[424821691,1781182258000,-200.0,0.00031515,2]
[424821689,1781182258000,-320.0,0.00031484,20]
[424821688,1781182258000,-929.68,0.00031469,21]
[424821687,1781182258000,-187.94,0.00031388,13]
[424821693,1781182258000,-354.00544485,0.00031541,2]
[424821690,1781182258000,-200.0,0.00031515,2]
[424821692,1781182258000,-200.0,0.00031515,2]
[424821697,1781182258000,-232.94620238,0.00031594,7]
[424821696,1781182258000,-929.68,0.00031558,30]
[424821695,1781182258000,-150.315542,0.00031554,2]
[424821677,1781182258000,-1283.7588,0.00031233,2]
[424821699,1781182258000,-376.38,0.00031631,30]
[424821684,1781182258000,-150.0,0.00031378,7]
[424821709,1781182258000,-1774.381799,0.00031738,7]
[424821760,1781182258000,-482.22,0.00031929,2]
[424821758,1781182258000,-396.12,0.00031929,2]
[424821769,1781182258000,-377.79533379,0.00032,120]
[424821761,1781182258000,-7464.0,0.00031934,10]
[424821768,1781182258000,-199.36769842,0.00032,120]
[424821762,1781182258000,-150.0,0.00031934,3]
[424821767,1781182258000,-175.36835639,0.00032,120]
[424821765,1781182258000,-272859.0,0.00032,2]
[424821771,1781182258000,-249.95552276,0.00032,120]
[424821781,1781182258000,-1073.24811902,0.00032,120]
[424821776,1781182258000,-1547.85029488,0.00032,120]
[424821780,1781182258000,-447.33345275,0.00032,120]
[424821759,1781182258000,-644.05,0.00031929,2]
[424821770,1781182258000,-268.36437306,0.00032,120]
[424821775,1781182258000,-357.22927717,0.00032,120]
[424821785,1781182258000,-174.80648197,0.00032,120]
[424821778,1781182258000,-185.47405073,0.00032,120]
[424821772,1781182258000,-168.39780961,0.00032,120]
[424821784,1781182258000,-1289.54905988,0.00032,120]
[424821787,1781182258000,-178.25990568,0.00032,120]
[424821779,1781182258000,-1388.58024095,0.00032,120]
[424821782,1781182258000,-375.19536196,0.00032,120]
[424821774,1781182258000,-188.43175161,0.00032,120]
[424821783,1781182258000,-195.49555799,0.00032,120]
[424821777,1781182258000,-180.00618676,0.00032,120]
[424821702,1781182258000,-1026.95893104,0.00031737,7]
[424821773,1781182258000,-185.87068678,0.00032,120]
[424821763,1781182258000,-474.9,0.00031965,2]
[424821786,1781182258000,-269.65229031,0.00032,120]
[424821766,1781182258000,-2500.0,0.00032,2]
[424821704,1781182258000,-1151.8191712,0.00031737,7]
[424821757,1781182258000,-644.05,0.00031929,2]
[424821735,1781182258000,-643.96,0.0003184,2]
[424821717,1781182258000,-150.0,0.00031765,7]
[424821747,1781182258000,-2318.0,0.00031917,3]
[424821742,1781182258000,-155.293853,0.00031884,7]
[424821738,1781182258000,-644.05,0.00031841,2]
[424821745,1781182258000,-9384.14,0.000319,2]
[424821749,1781182258000,-482.22,0.00031929,2]
[424821754,1781182258000,-396.12,0.00031929,2]
[424821751,1781182258000,-644.05,0.00031929,2]
[424821752,1781182258000,-185.09,0.00031929,2]
[424821733,1781182258000,-575.36,0.0003184,2]
[424821756,1781182258000,-482.22,0.00031929,2]
[424821740,1781182258000,-644.05,0.00031841,2]
[424821737,1781182258000,-396.12,0.00031841,2]
[424821746,1781182258000,-400.0,0.000319,11]
[424821741,1781182258000,-16013.63820731,0.00031884,2]
[424821734,1781182258000,-396.12,0.0003184,2]
[424821750,1781182258000,-575.42,0.00031929,2]
[424821736,1781182258000,-185.09,0.0003184,2]
[424821739,1781182258000,-575.42,0.00031841,2]
[424821753,1781182258000,-644.05,0.00031929,2]
[424821744,1781182258000,-1253.28,0.000319,2]
[424821755,1781182258000,-644.05,0.00031929,2]
[424821764,1781182258000,-320.0,0.00031989,22]
[424821743,1781182258000,-6266.4,0.000319,2]
[424821748,1781182258000,-396.12,0.00031929,2]
[424821788,1781182259000,-163.88107684,0.00032,120]
[424821792,1781182259000,-487.17,0.00032,2]
[424821790,1781182259000,-300.0,0.00032,120]
[424821794,1781182259000,-151.0,0.00032,7]
[424821789,1781182259000,-320.81508783,0.00032,120]
[424821803,1781182259000,-736.70689387,0.00032,7]
[424821799,1781182259000,-341.397837,0.00032,7]
[424821801,1781182259000,-151.0,0.00032,7]
[424821802,1781182259000,-1855.189184,0.00032,7]
[424821800,1781182259000,-341.397837,0.00032,7]
[424821791,1781182259000,-151.0,0.00032,7]
[424821796,1781182259000,-700.0,0.00032,2]
[424821793,1781182259000,-151.0,0.00032,7]
[424821795,1781182259000,-175.987358,0.00032,7]
[424821798,1781182259000,-341.397837,0.00032,7]
[424821804,1781182259000,-150.0,0.00021918,2]
[424821805,1781182259000,-308.87313864,0.00032,7]
[424821810,1781182259000,-150.0,0.00024164,2]
[424821809,1781182259000,-150.0,0.00023014,2]
[424821807,1781182259000,-1860.0,0.0002,2]
[424821808,1781182259000,-2376.30995988,0.00022407,2]
[424821806,1781182259000,-344.91085244,8.39e-05,2]
[424821797,1781182259000,-341.397837,0.00032,7]
[424821827,1781182260000,-1504.815825,0.00032,7]
[424821828,1781182260000,-639.305788,0.00032,7]
[424821825,1781182260000,-1504.815825,0.00032,7]
[424821833,1781182260000,-380.0,0.00032008,10]
[424821831,1781182260000,-639.305788,0.00032,7]
[424821830,1781182260000,-639.305788,0.00032,7]
[424821832,1781182260000,-1137.81806385,0.00032,7]
[424821834,1781182260000,-150.0,0.00032031,7]
[424821841,1781182260000,-930.56969257,0.00032144,30]
[424821820,1781182260000,-151.0,0.00032,7]
[424821839,1781182260000,-88190.7663667,0.00032135,2]
[424821837,1781182260000,-500.1,0.00032063,3]
[424821818,1781182260000,-1855.189184,0.00032,7]
[424821824,1781182260000,-151.0,0.00032,7]
[424821821,1781182260000,-151.0,0.00032,7]
[424821822,1781182260000,-1504.815825,0.00032,7]
[424821829,1781182260000,-639.305788,0.00032,7]
[424821823,1781182260000,-1504.815825,0.00032,7]
[424821819,1781182260000,-1855.189184,0.00032,7]
[424821815,1781182260000,-8607.04919922,0.00027397,10]
[424821817,1781182260000,-809.60915149,0.00032,7]
[424821814,1781182260000,-894.72780505,0.00027397,10]
[424821816,1781182260000,-150.0,0.00027973,2]
[424821812,1781182260000,-150.0,0.00026641,2]
[424821813,1781182260000,-1117.27299573,0.00027397,10]
[424821811,1781182260000,-150.0,0.00025373,2]
[424821826,1781182260000,-151.0,0.00032,7]
[424821835,1781182260000,-408.65850556,0.0003204,2]
[424821844,1781182260000,-929.68,0.00032171,21]
[424821840,1781182260000,-150.0,0.00032144,30]
[424821838,1781182260000,-376.38,0.0003213,30]
[424821867,1781182260000,-660.0,0.00019253,3]
[424821868,1781182260000,-5608.95720396,0.00032232,120]
[424821864,1781182260000,-150.0,0.00029372,2]
[424821865,1781182260000,-1912.59864557,0.00032232,120]
[424821866,1781182260000,-6004.32509043,0.00032232,120]
[424821862,1781182260000,-473.23516662,0.00032232,120]
[424821861,1781182260000,-1860.0,0.00021,2]
[424821860,1781182260000,-660.0,0.00018,2]
[424821853,1781182260000,-396.0,0.0003219,30]
[424821856,1781182260000,-1231.0,0.00032191,30]
[424821854,1781182260000,-428.0,0.0003219,30]
[424821857,1781182260000,-1860.0,0.00032191,30]
[424821863,1781182260000,-660.0,0.00018626,2]
[424821855,1781182260000,-342.0,0.00032191,30]
[424821836,1781182260000,-339.25,0.00032055,5]
[424821842,1781182260000,-150.0,0.00032144,30]
[424821848,1781182260000,-425.0,0.00032189,30]
[424821843,1781182260000,-439.24814527,0.00032144,30]
[424821846,1781182260000,-1107.0,0.00032189,30]
[424821845,1781182260000,-337.0,0.00032189,30]
[424821849,1781182260000,-1162.0,0.0003219,30]
[424821850,1781182260000,-269.0,0.0003219,30]
[424821851,1781182260000,-478.0,0.0003219,30]
[424821852,1781182260000,-277.0,0.0003219,30]
[424821859,1781182260000,-57875.22277862,0.00032232,120]
[424821847,1781182260000,-404.0,0.00032189,30]
[424821858,1781182260000,-1760.5,0.0003221,5]
[424821870,1781182329000,489.35543176,0.0001,5]
[424821869,1781182329000,489.35543176,0.0001,5]
[424821875,1781182395000,479.14703487,0.0001,5]
[424821874,1781182395000,479.14703487,0.0001,5]
[424821877,1781182460000,429.98980328,0.0001,5]
[424821876,1781182460000,429.98980328,0.0001,5]
[424821878,1781182499000,9040.60058098,0.000209,30]